bitfinex-derivatives/quotes_ETHF0:USTF0_20250320
["timestamp","ask_amount","ask_price","bid_price","bid_amount"]
[1742451316358,1.3192,2020.1,2020.0,42.96253]
[1742451319462,2.11122,2020.1,2020.0,42.96253]
[1742451320158,1.3192,2020.1,2020.0,42.96253]
[1742451320765,2.11122,2020.1,2020.0,42.96253]
[1742451321157,1.3192,2020.1,2020.0,42.96253]
[1742451321666,2.11122,2020.1,2020.0,42.96253]
[1742451321860,1.3192,2020.1,2020.0,42.96253]
[1742451322063,2.11122,2020.1,2020.0,42.1705]
[1742451322261,2.11122,2020.1,2020.0,42.96256]
[1742451322464,2.11122,2020.1,2020.0,44.35536]
[1742451322863,2.11122,2020.1,2020.0,43.5633]
[1742451323364,2.11122,2020.1,2020.0,44.23920714]
[1742451323867,2.11122,2020.1,2020.0,45.03126714]
[1742451324164,2.11122,2020.1,2020.0,4.23126714]
[1742451324367,1.3192,2020.1,2020.0,4.23126714]
[1742451325380,1.3192,2020.1,2020.0,3.55536]
[1742451325666,1.3192,2020.1,2020.0,4.23115856]
[1742451326465,1.3192,2020.1,2020.0,3.55536]
[1742451326665,1.3192,2020.1,2020.0,4.23115292]
[1742451326867,1.3192,2020.1,2020.0,3.55536]
[1742451327066,1.3192,2020.1,2020.0,4.23115476]
[1742451327268,1.3192,2020.1,2020.0,3.55536]
[1742451328773,4.62027,2020.3,2020.2,0.79198]
[1742451328976,0.79198,2020.2,2020.1,2.13042]
[1742451329274,2.07568,2020.2,2020.1,1.3384]
[1742451329973,0.79206,2020.0,2019.9,40.8]
[1742451330173,0.79206,2020.0,2019.9,41.47577223]
[1742451330374,0.79206,2020.0,2019.9,41.5921]
[1742451330575,0.79206,2020.0,2019.9,40.8]
[1742451331075,2.17926,2020.0,2019.9,2.1857]
[1742451331577,2.17926,2020.0,2019.9,42.9857]
[1742451333180,1.3872,2020.0,2019.9,42.9857]
[1742451333477,2.17926,2020.0,2019.9,42.9857]
[1742451334373,2.17926,2020.0,2019.9,1.3936]
[1742451334583,2.17926,2020.0,2019.9,2.1857]
[1742451335174,2.17926,2020.0,2019.9,1.3936]
[1742451335379,2.17926,2020.0,2019.9,2.1857]
[1742451335770,2.17926,2020.0,2019.9,1.3936]
[1742451336080,2.17926,2020.0,2019.9,2.1857]
[1742451336577,2.17926,2020.0,2019.9,1.3936]
[1742451337280,1.3872,2020.0,2019.9,2.1857]
[1742451337480,2.17926,2020.0,2019.9,2.1857]
[1742451337878,1.3872,2020.0,2019.9,2.1857]
[1742451339178,2.17926,2020.0,2019.9,2.86188091]
[1742451339380,1.3872,2020.0,2019.9,2.1857]
[1742451339681,2.17926,2020.0,2019.9,2.86191363]
[1742451340085,1.3872,2020.0,2019.9,2.1857]
[1742451340485,1.3872,2020.0,2019.9,2.86191921]
[1742451340678,1.3872,2020.0,2019.9,2.1857]
[1742451341185,1.3872,2020.0,2019.9,2.86189935]
[1742451341682,2.17926,2020.0,2019.9,2.86189935]
[1742451342076,2.17926,2020.0,2019.9,2.1857]
[1742451342785,2.17926,2020.0,2019.9,1.3936]
[1742451343085,2.86876,2020.0,2019.9,1.3936]
[1742451343880,2.86876,2020.0,2019.9,2.1857]
[1742451344282,2.0767,2020.0,2019.9,2.1857]
[1742451344982,2.86876,2020.0,2019.9,2.1857]
[1742451345385,3.149,2020.1,2020.0,0.79206]
[1742451345584,4.4934,2020.1,2020.0,2.09176]
[1742451345884,4.4934,2020.1,2020.0,2.76885243]
[1742451346474,5.28542,2020.1,2020.0,2.76885243]
[1742451347172,5.28542,2020.1,2020.0,1.97679243]
[1742451347378,5.28542,2020.1,2020.0,1.97679322]
[1742451348089,5.28542,2020.1,2020.0,2.76885322]
[1742451348881,4.4934,2020.1,2020.0,2.76885322]
[1742451349383,5.28542,2020.1,2020.0,2.09176]
[1742451349586,5.28542,2020.1,2020.0,2.76910305]
[1742451350780,5.28542,2020.1,2020.0,1.97704305]
[1742451351380,5.28542,2020.1,2020.0,2.76910305]
[1742451351581,5.28542,2020.1,2020.0,1.97704305]
[1742451351990,5.28542,2020.1,2020.0,1.97728298]
[1742451352193,0.7921,2019.9,2019.8,3.2078]
[1742451352383,0.7921,2019.9,2019.8,6.02023567]
[1742451352686,0.7921,2019.9,2019.8,5.22814835]
[1742451352889,2.1842,2019.9,2019.8,5.22814835]
[1742451353388,1.3921,2019.9,2019.8,6.02028835]
[1742451353590,1.3921,2019.9,2019.8,6.02021804]
[1742451354990,0.79206,2020.0,2019.9,0.7921]
[1742451355291,3.94105,2020.1,2020.0,0.79206]
[1742451355683,3.94105,2020.1,2020.0,42.1309]
[1742451356094,3.94105,2020.1,2020.0,42.92296]
[1742451357297,3.94105,2020.1,2020.0,43.60096289]
[1742451357594,3.94105,2020.1,2020.0,43.60096731]
[1742451357889,3.94105,2020.1,2020.0,43.60096349]
[1742451359191,3.94105,2020.1,2020.0,2.80096349]
[1742451359391,3.94102,2020.1,2020.0,2.80096349]
[1742451359695,3.94102,2020.1,2020.0,2.12296]
[1742451359995,3.94102,2020.1,2020.0,2.80111696]
[1742451362297,3.94102,2020.1,2020.0,2.00905696]
[1742451362799,3.94102,2020.1,2020.0,2.80111696]
[1742451363797,3.94102,2020.1,2020.0,2.00905696]
[1742451364789,3.94102,2020.1,2020.0,1.3309]
[1742451364990,3.94102,2020.1,2020.0,2.12296]
[1742451365292,4.482,2020.2,2020.1,0.79202]
[1742451365494,5.27399,2020.2,2020.1,2.10482]
[1742451366602,5.27399,2020.2,2020.1,1.3128]
[1742451367495,5.27399,2020.2,2020.1,2.10482]
[1742451367986,5.27398,2020.2,2020.1,2.10482]
[1742451370421,27.37397933,2020.6,2020.5,0.79186]
[1742451370608,23.56500933,2020.6,2020.5,0.79186]
[1742451370795,23.56500933,2020.6,2020.5,1.46987902]
[1742451371195,23.56500933,2020.6,2020.5,0.79186]
[1742451371396,0.79188,2020.5,2020.4,0.79188]
[1742451371596,2.15108,2020.5,2020.4,0.79188]
[1742451371810,0.7919,2020.4,2020.3,2.09821]
[1742451372104,2.15109,2020.5,2020.4,0.7919]
[1742451372299,2.15109,2020.5,2020.4,2.1229]
[1742451372499,2.15109,2020.5,2020.4,1.331]
[1742451373104,1.3592,2020.5,2020.4,2.1229]
[1742451373304,1.3592,2020.5,2020.4,6.0080557]
[1742451374495,2.15106,2020.5,2020.4,6.0080557]
[1742451374807,1.3592,2020.5,2020.4,6.0080557]
[1742451375008,8.53198542,2020.7,2020.4,5.2161557]
[1742451375306,10.62350542,2020.7,2020.6,0.79182]
[1742451375699,5.24052,2020.7,2020.6,2.19782]
[1742451375894,3.93982,2020.7,2020.6,2.19782]
[1742451376105,0.6962,2020.8,2020.7,0.79178]
[1742451376106,2.15037,2020.8,2020.7,0.79178]
[1742451376308,1.3586,2020.8,2020.7,2.19778]
[1742451376707,0.79174,2020.8,2020.7,2.19778]
[1742451376909,0.79174,2020.8,2020.7,1.406]
[1742451377302,2.15034,2020.8,2020.7,1.406]
[1742451377503,2.15034,2020.8,2020.7,2.19778]
[1742451377707,0.79174,2020.8,2020.7,2.19775]
[1742451378102,0.79174,2020.8,2020.7,1.406]
[1742451378511,2.19474,2020.8,2020.7,1.406]
[1742451379708,2.19474,2020.8,2020.7,2.19778]
[1742451380309,1.403,2020.8,2020.7,2.19778]
[1742451380910,3.93974,2020.9,2020.8,0.79174]
[1742451381210,4.551,2020.9,2020.8,2.88954]
[1742451381800,0.6763,2021.1,2020.9,0.79169]
[1742451382005,1.3427,2021.0,2020.9,2.85819]
[1742451382513,2.13439,2021.0,2020.9,2.85821]
[1742451384911,1.3427,2021.0,2020.9,2.85821]
[1742451385114,2.13437,2021.0,2020.9,2.0665]
[1742451385316,2.13437,2021.0,2020.9,2.85821]
[1742451386011,2.13437,2021.0,2020.9,2.0665]
[1742451386214,2.13437,2021.0,2020.9,2.85821]
[1742451386803,2.13437,2021.0,2020.9,2.0665]
[1742451387016,2.13437,2021.0,2020.9,1.3986]
[1742451389019,0.79171,2020.9,2020.8,0.00742482]
[1742451389317,6.03211,2020.9,2020.8,0.00742482]
[1742451389510,0.79186,2020.5,2020.4,4.5032]
[1742451389712,3.151,2020.6,2020.2,1.377]
[1742451390011,3.151,2020.6,2020.1,3.2078]
[1742451390012,1.4093,2020.4,2020.1,3.2078]
[1742451390217,3.94898,2020.3,2020.2,1.2954]
[1742451390419,4.60888,2020.3,2020.2,1.2954]
[1742451391216,3.8169,2020.3,2020.2,2.08738]
[1742451391414,0.00736218,2020.5,2020.4,0.7919]
[1742451391813,1.34876218,2020.5,2020.4,0.7919]
[1742451392014,1.34876218,2020.5,2020.4,1.491]
[1742451392321,0.00736218,2020.5,2020.4,4.6988]
[1742451392522,0.00736218,2020.5,2020.4,5.3548]
[1742451392726,0.79922218,2020.5,2020.4,5.3548]
[1742451392927,1.34876218,2020.5,2020.4,5.3548]
[1742451394825,2.14062218,2020.5,2020.4,5.3548]
[1742451396225,1.34876218,2020.5,2020.4,5.3548]
[1742451396625,0.00736218,2020.5,2020.4,5.3548]
[1742451397217,0.00736218,2020.5,2020.4,6.03131124]
[1742451397728,1.38866218,2020.5,2020.4,6.03131124]
[1742451397928,1.38866218,2020.5,2020.4,5.3548]
[1742451398223,1.38866218,2020.5,2020.4,6.03131884]
[1742451398927,0.00736218,2020.5,2020.4,6.03131884]
[1742451399426,0.79922218,2020.5,2020.4,6.03131884]
[1742451399626,2.18052218,2020.5,2020.4,6.03131884]
[1742451399829,1.38866218,2020.5,2020.4,6.03131884]
[1742451400617,0.00736218,2020.5,2020.4,6.03131884]
[1742451401831,1.35826218,2020.5,2020.4,6.03131884]
[1742451402030,1.35826218,2020.5,2020.4,6.03195067]
[1742451402824,2.15012218,2020.5,2020.4,6.03195067]
[1742451403231,1.35826218,2020.5,2020.4,6.03195067]
[1742451403526,2.15012218,2020.5,2020.4,5.3548]
[1742451403824,2.15012218,2020.5,2020.4,6.03193785]
[1742451405235,2.15012218,2020.5,2020.4,6.03190406]
[1742451406529,2.15012218,2020.5,2020.4,4.5629]
[1742451406931,2.83912218,2020.5,2020.4,4.5717]
[1742451407734,2.83912218,2020.5,2020.4,1.3639]
[1742451408333,0.79198,2020.2,2020.1,5.35379]
[1742451408530,0.79198,2020.2,2020.1,5.23918609]
[1742451409035,0.79198,2020.2,2020.1,3.88518609]
[1742451409238,1.45318,2020.2,2020.1,3.2078]
[1742451409636,2.79398,2020.2,2020.1,4.5412]
[1742451409833,5.94898,2020.2,2020.1,4.5412]
[1742451410335,5.94898,2020.2,2020.0,0.00742482]
[1742451410336,0.79202,2020.1,2020.0,0.00742482]
[1742451410526,2.13282,2020.1,2020.0,1.34082482]
[1742451411240,2.13282,2020.1,2020.0,0.00742482]
[1742451413936,4.63282,2020.1,2020.0,0.00742482]
[1742451416435,10.59282,2020.1,2020.0,0.00742482]
[1742451423747,11.24382,2020.1,2020.0,0.00742482]
[1742451429449,13.82811347,2020.1,2020.0,4.82e-06]
[1742451429959,13.74382,2020.1,2020.0,4.82e-06]
[1742451430250,13.82811398,2020.1,2020.0,4.82e-06]
[1742451430652,14.22741636,2020.1,2020.0,4.82e-06]
[1742451430953,14.22741579,2020.1,2020.0,4.82e-06]
[1742451433343,11.32811341,2020.1,2020.0,4.82e-06]
[1742451433651,11.24382,2020.1,2020.0,4.82e-06]
[1742451434944,11.24382,2020.1,2020.0,1.32630482]
[1742451436849,11.32811087,2020.1,2020.0,1.32630482]
[1742451439144,11.32811087,2020.1,2020.0,4.82e-06]
[1742451439858,12.22590371,2020.1,2020.0,4.82e-06]
[1742451440357,12.22590874,2020.1,2020.0,4.82e-06]
[1742451443653,12.22590789,2020.1,2020.0,4.82e-06]
[1742451444558,11.32811505,2020.1,2020.0,1.32060482]
[1742451448373,12.22674789,2020.1,2020.0,1.32060482]
[1742451448877,11.32811282,2020.1,2020.0,1.32060482]
[1742451450278,12.22675698,2020.1,2020.0,1.32060482]
[1742451450471,12.22675751,2020.1,2020.0,1.32060482]
[1742451451367,12.14246416,2020.1,2020.0,1.32060482]
[1742451451771,11.24382,2020.1,2020.0,1.32060482]
[1742451454573,9.90202,2020.1,2020.0,1.32060482]
[1742451455176,11.27712,2020.1,2020.0,1.32060482]
[1742451462182,12.06741015,2020.1,2020.0,1.32060482]
[1742451462687,0.7921,2019.9,2019.8,0.7056]
[1742451462887,7.1509,2019.9,2019.8,0.7056]
[1742451463479,7.8032,2019.9,2019.8,0.7056]
[1742451465281,13.7632,2019.9,2019.8,0.7056]
[1742451467886,13.7632,2019.9,2019.8,1.3584]
[1742451475291,0.79214,2019.8,2019.7,1.3561]
[1742451475587,2.81154,2019.8,2019.7,1.3561]
[1742451475892,0.79218,2019.7,2019.6,0.00742482]
[1742451476094,5.23568,2019.7,2019.6,0.00742482]
[1742451482192,9.1678,2019.9,2019.6,0.79963482]
[1742451482486,3.94214,2019.8,2019.7,2.7032]
[1742451482685,9.1678,2019.9,2019.7,2.7032]
[1742451482887,9.9599,2019.9,2019.8,1.3341]
[1742451483086,13.1099,2019.9,2019.8,1.3341]
[1742451486099,9.9599,2019.9,2019.8,1.3341]
[1742451486401,13.1099,2019.9,2019.8,1.3341]
[1742451486898,7.1499,2019.9,2019.8,1.3341]
[1742451487401,7.1499,2019.9,2019.8,2.12624]
[1742451488398,7.1499,2019.9,2019.8,1.3341]
[1742451488594,3.9999,2019.9,2019.8,2.12624]
[1742451488793,3.2078,2019.9,2019.8,2.12624]
[1742451489602,3.2078,2019.9,2019.8,42.92624]
[1742451489797,3.9999,2019.9,2019.8,42.92624]
[1742451489998,3.2078,2019.9,2019.8,42.92624]
[1742451491195,3.2078,2019.9,2019.8,2.12624]
[1742451491399,3.9999,2019.9,2019.8,2.12624]
[1742451492402,3.2078,2019.9,2019.8,2.12624]
[1742451498108,3.9999,2019.9,2019.8,2.12624]
[1742451499213,0.7921,2019.9,2019.8,2.12624]
[1742451499803,4.5551,2020.0,2019.8,2.12624]
[1742451500007,5.34719,2020.0,2019.9,2.1924]
[1742451500707,6.3568,2020.1,2020.0,0.79206]
[1742451500902,6.3568,2020.1,2020.0,2.16296]
[1742451501414,7.14886,2020.1,2020.0,2.16296]
[1742451501721,7.14886,2020.1,2020.0,1.3709]
[1742451502517,7.14886,2020.1,2020.0,2.7782]
[1742451502908,8.43686,2020.1,2020.0,2.7782]
[1742451503212,8.43686,2020.1,2020.0,1.4073]
[1742451505623,0.7921,2019.9,2019.8,2.15873]
[1742451505920,2.09608,2020.0,2019.9,0.7921]
[1742451506507,0.7921,2019.9,2019.8,2.15871]
[1742451507016,2.0844,2019.9,2019.8,3.46151]
[1742451507720,0.79214,2019.8,2019.7,40.8]
[1742451507916,2.08444,2019.8,2019.7,42.1028]
[1742451513115,2.08444,2019.8,2019.7,40.8]
[1742451516930,2.08444,2019.8,2019.6,1.35142482]
[1742451516931,0.79218,2019.7,2019.6,1.35142482]
[1742451517120,6.00678,2019.7,2019.6,0.00742482]
[1742451520118,11.96678,2019.7,2019.6,0.00742482]
[1742451520732,0.79233,2019.3,2019.2,3.2078]
[1742451520927,3.94133,2019.3,2019.2,3.2078]
[1742451521125,0.79237,2019.2,2019.1,1.9935]
[1742451521433,2.88157,2019.2,2019.1,1.3094]
[1742451521828,2.0892,2019.2,2019.1,2.10181]
[1742451522029,2.88157,2019.2,2019.1,1.3094]
[1742451523423,2.88157,2019.2,2019.1,2.10181]
[1742451523724,2.88157,2019.2,2019.1,2.74571]
[1742451524127,2.88157,2019.2,2019.1,1.9533]
[1742451526134,2.88157,2019.2,2019.1,1.3094]
[1742451526325,0.79241,2019.1,2019.0,41.4467]
[1742451526525,2.08801,2019.1,2019.0,42.7389]
[1742451526836,1.2956,2019.1,2019.0,46.73915]
[1742451527025,0.79241,2019.2,2019.1,0.7924]
[1742451527221,2.08801,2019.2,2019.1,2.7487]
[1742451527725,2.08801,2019.2,2019.1,1.9563]
[1742451528329,2.08801,2019.2,2019.1,2.74871]
[1742451531038,1.2956,2019.2,2019.1,2.74871]
[1742451531629,2.08797,2019.2,2019.1,2.74871]
[1742451532421,1.2956,2019.2,2019.1,2.74871]
[1742451533935,0.79974482,2019.4,2019.1,1.9563]
[1742451534136,0.79974482,2019.4,2019.3,0.79233]
[1742451534339,0.79233,2019.3,2019.2,2.12426]
[1742451534731,2.16365482,2019.4,2019.3,0.79233]
[1742451534933,2.16365482,2019.4,2019.3,2.12423]
[1742451536241,2.16365482,2019.4,2019.3,1.3319]
[1742451542628,5.31365482,2019.4,2019.3,1.3319]
[1742451544345,0.79237,2019.2,2019.1,0.6641]
[1742451544645,3.94237,2019.2,2019.1,0.6641]
[1742451545229,3.94237,2019.2,2019.1,1.45651]
[1742451545435,3.15,2019.2,2019.1,1.45651]
[1742451545643,5.28837,2019.2,2019.1,1.45651]
[1742451545841,5.28837,2019.2,2019.1,0.6641]
[1742451546444,5.28837,2019.2,2019.1,2.74221]
[1742451546844,5.28837,2019.2,2019.1,1.9498]
[1742451547446,5.28837,2019.2,2019.1,2.648]
[1742451548145,3.94237,2019.2,2019.1,2.648]
[1742451548938,3.94237,2019.2,2019.1,3.44041]
[1742451550649,3.94237,2019.2,2019.1,2.648]
[1742451551551,5.23487,2019.2,2019.1,3.44041]
[1742451554050,5.23487,2019.2,2019.1,2.648]
[1742451554949,5.23487,2019.2,2019.1,3.44041]
[1742451555355,5.23487,2019.2,2019.1,1.2857]
[1742451555557,0.79245,2019.0,2018.9,1.33112482]
[1742451555753,0.79245,2019.0,2018.9,3.33244407]
[1742451555952,3.94245,2019.0,2018.9,1.32892482]
[1742451556155,5.25175,2019.0,2018.9,1.32892482]
[1742451556655,5.25175,2019.0,2018.9,0.00742482]
[1742451557453,8.45955,2019.0,2018.9,0.00742482]
[1742451560163,14.41955,2019.0,2018.9,0.00742482]
[1742451572368,9.96025,2019.0,2018.9,0.00742482]
[1742451572665,13.11025,2019.0,2018.9,1.33922482]
[1742451573058,13.11025,2019.0,2018.9,2.72192482]
[1742451575273,13.81245,2019.0,2018.9,0.00742482]
[1742451575460,14.49285,2019.0,2018.9,0.00742482]
[1742451582478,13.81245,2019.0,2018.9,0.00742482]
[1742451582877,15.10885,2019.0,2018.9,0.00742482]
[1742451585375,11.95885,2019.0,2018.9,0.00742482]
[1742451585570,15.10885,2019.0,2018.9,0.00742482]
[1742451586377,14.40665,2019.0,2018.9,0.00742482]
[1742451587577,13.11025,2019.0,2018.9,0.00742482]
[1742451588272,13.11025,2019.0,2018.9,0.65762482]
[1742451588465,13.11025,2019.0,2018.9,1.36262482]
[1742451589272,9.96025,2019.0,2018.9,1.36262482]
[1742451589478,4.00025,2019.0,2018.9,2.72922482]
[1742451592478,5.39205,2019.0,2018.9,2.72922482]
[1742451594785,5.39205,2019.0,2018.9,3.52171482]
[1742451594983,4.00025,2019.0,2018.9,3.52171482]
[1742451596578,4.00025,2019.0,2018.9,2.72922482]
[1742451596779,4.00025,2019.0,2018.9,3.52171482]
[1742451596979,5.28575,2019.0,2018.9,3.52171482]
[1742451597989,5.28575,2019.0,2018.9,2.72922482]
[1742451599180,3.2078,2019.3,2018.9,2.16649482]
[1742451599490,0.79241,2019.1,2019.0,2.0225]
[1742451599674,0.79241,2019.1,2019.0,2.721]
[1742451599878,2.13491,2019.1,2019.0,2.721]
[1742451600281,2.13491,2019.1,2019.0,3.51345]
[1742451600489,2.13491,2019.1,2019.0,2.721]
[1742451602483,2.13491,2019.1,2019.0,3.51345]
[1742451603191,2.13491,2019.1,2019.0,2.721]
[1742451604892,2.13491,2019.1,2019.0,3.51345]
[1742451605793,2.13491,2019.1,2019.0,2.721]
[1742451606291,2.13491,2019.1,2019.0,3.51345]
[1742451606485,5.28491,2019.1,2019.0,1.3759]
[1742451606794,0.79245,2019.0,2018.9,0.00742482]
[1742451606985,2.09265,2019.0,2018.9,1.39242482]
[1742451607793,2.09265,2019.0,2018.9,2.18491482]
[1742451608191,3.15,2019.1,2018.9,2.18491482]
[1742451608192,3.15,2019.1,2019.0,0.79245]
[1742451608391,3.15,2019.1,2019.0,2.84405]
[1742451608581,3.94241,2019.1,2019.0,2.7211]
[1742451608892,3.94241,2019.1,2019.0,3.51355]
[1742451610189,3.94241,2019.1,2019.0,2.7211]
[1742451610391,3.94241,2019.1,2019.0,1.385]
[1742451610692,0.79245,2019.0,2018.9,0.00742482]
[1742451610896,0.79245,2019.0,2018.9,1.31912482]
[1742451610897,2.13175,2019.0,2018.9,1.31912482]
[1742451612794,2.13175,2019.0,2018.9,0.00742482]
[1742451613196,2.13175,2019.0,2018.9,1.32022482]
[1742451613398,5.33955,2019.0,2018.9,0.00742482]
[1742451613600,11.29955,2019.0,2018.9,0.00742482]
[1742451614989,0.79273,2018.3,2018.2,3.8663]
[1742451615194,0.79273,2018.3,2018.2,5.33925072]
[1742451615396,0.79273,2018.3,2018.2,46.13925072]
[1742451616300,1.3115,2018.3,2018.2,46.13925072]
[1742451616697,1.4333,2018.4,2018.2,46.13925072]
[1742451616698,3.152,2018.5,2018.4,0.79269]
[1742451617001,0.79269,2018.4,2018.3,2.74159]
[1742451617189,2.10419,2018.4,2018.3,3.4213995]
[1742451617388,2.10419,2018.4,2018.3,2.74159]
[1742451617796,2.10419,2018.4,2018.3,1.9489]
[1742451619502,2.10419,2018.4,2018.3,2.74163]
[1742451620504,2.10419,2018.4,2018.3,1.9489]
[1742451620692,0.79268,2018.5,2018.4,0.79266]
[1742451620897,5.1893,2018.7,2018.5,0.79265]
[1742451620898,1.3538,2018.6,2018.5,0.79265]
[1742451621099,0.79265,2018.5,2018.4,1.3298]
[1742451621300,2.14644,2018.6,2018.5,0.79265]
[1742451621606,2.14641,2018.6,2018.5,1.45975]
[1742451622405,2.14641,2018.6,2018.5,0.6671]
[1742451623009,2.14641,2018.6,2018.5,1.45975]
[1742451623700,1.3538,2018.6,2018.5,1.45975]
[1742451624410,2.14641,2018.6,2018.5,0.6671]
[1742451625101,2.14641,2018.6,2018.5,2.01]
[1742451625299,2.14641,2018.6,2018.5,2.80265]
[1742451625708,0.79269,2018.4,2018.3,3.858]
[1742451625911,0.79269,2018.4,2018.3,5.2009]
[1742451626412,2.16709,2018.4,2018.3,5.2009]
[1742451626710,2.16709,2018.4,2018.3,5.99363]
[1742451628610,0.79269,2018.4,2018.3,5.99363]
[1742451629613,2.08198,2018.5,2018.4,0.79269]
[1742451629813,2.08198,2018.5,2018.4,2.89379]
[1742451630215,1.2893,2018.5,2018.4,2.89379]
[1742451630403,0.79255,2018.8,2018.7,0.79257]
[1742451630712,2.08185,2018.8,2018.7,0.79257]
[1742451630912,0.79261,2018.7,2018.6,2.0748]
[1742451631115,2.11121,2018.7,2018.6,0.6577]
[1742451633810,0.79265,2018.5,2018.4,0.684]
[1742451634115,0.79265,2018.5,2018.4,1.3672]
[1742451634510,0.79265,2018.5,2018.4,2.15989]
[1742451635813,0.79265,2018.5,2018.4,1.3672]
[1742451636013,2.11125,2018.6,2018.5,0.79265]
[1742451636908,0.79265,2018.5,2018.4,2.15986]
[1742451637114,2.17995,2018.5,2018.4,2.15986]
[1742451637314,2.17995,2018.5,2018.4,1.3672]
[1742451637814,2.17995,2018.5,2018.4,2.15989]
[1742451638011,2.17995,2018.5,2018.4,2.83929498]
[1742451638711,2.17995,2018.5,2018.4,2.15989]
[1742451639113,1.3873,2018.5,2018.4,2.15989]
[1742451639408,0.7926,2018.7,2018.6,0.79261]
[1742451639720,3.169,2018.8,2018.7,0.79257]
[1742451639923,4.5014,2018.8,2018.7,0.79257]
[1742451640114,5.29393,2018.8,2018.7,0.79257]
[1742451640921,2.12493,2018.8,2018.7,0.79257]
[1742451641919,2.12493,2018.8,2018.7,2.18547]
[1742451642224,2.12493,2018.8,2018.7,3.55087]
[1742451643335,1.3324,2018.8,2018.7,3.55087]
[1742451643517,2.12493,2018.8,2018.7,3.55087]
[1742451647014,3.2078,2018.9,2018.8,0.79253]
[1742451647224,1.3546,2019.0,2018.9,0.79249]
[1742451648427,2.14707,2019.0,2018.9,0.79249]
[1742451649124,1.3546,2019.0,2018.9,0.79249]
[1742451650222,2.14705,2019.0,2018.9,0.79249]
[1742451651428,1.3546,2019.0,2018.9,0.79249]
[1742451653328,2.14705,2019.0,2018.9,0.79249]
[1742451654327,1.3546,2019.0,2018.9,0.79249]
[1742451655321,2.14705,2019.0,2018.9,0.79249]
[1742451655518,1.3546,2019.0,2018.9,0.79249]
[1742451656227,2.14705,2019.0,2018.9,0.79249]
[1742451658325,1.3546,2019.0,2018.9,0.79249]
[1742451658534,2.14705,2019.0,2018.9,0.79249]
[1742451660626,1.3546,2019.0,2018.9,0.79249]
[1742451660834,1.3546,2019.0,2018.9,1.47135563]
[1742451661236,0.00742482,2019.4,2019.3,0.79233]
[1742451661637,0.00742482,2019.4,2019.3,1.47082906]
[1742451661931,25.31132718,2020.2,2019.3,1.47082906]
[1742451661932,29.29134718,2020.2,2019.3,43.97849906]
[1742451662126,29.29134718,2020.2,2019.9,0.7921]
[1742451662127,3.167,2020.0,2019.9,0.7921]
[1742451662326,3.167,2020.0,2019.6,0.6827]
[1742451662638,1.3449,2019.9,2019.8,0.79214]
[1742451662837,2.137,2019.9,2019.8,0.79214]
[1742451663238,1.3449,2019.9,2019.8,0.79214]
[1742451663741,2.137,2019.9,2019.8,0.79214]
[1742451663928,1.3449,2019.9,2019.8,0.79214]
[1742451664240,1.35342482,2020.1,2020.0,0.79206]
[1742451664836,0.00742482,2020.1,2020.0,0.79206]
[1742451665041,0.00742482,2020.1,2020.0,1.44756]
[1742451665733,0.00742482,2020.1,2020.0,2.75676]
[1742451666035,0.00742482,2020.1,2020.0,5.25676]
[1742451667640,0.00742482,2020.1,2020.0,5.94466]
[1742451667845,0.00742482,2020.1,2020.0,3.44466]
[1742451668840,1.47497,2020.5,2020.0,3.44466]
[1742451668841,0.6831,2020.5,2020.4,0.7919]
[1742451669033,2.0922,2020.5,2020.4,0.7919]
[1742451669433,2.0922,2020.5,2020.4,2.8073]
[1742451669943,2.0922,2020.5,2020.4,3.5146]
[1742451674146,1.4091,2020.5,2020.4,3.5146]
[1742451674540,3.2078,2020.6,2020.5,0.79186]
[1742451674747,4.5063,2020.6,2020.5,2.15816]
[1742451674944,4.5063,2020.6,2020.5,5.32116]
[1742451675246,0.79186,2020.5,2020.4,2.14108]
[1742451675547,1.2985,2020.5,2020.4,3.50738]
[1742451675843,2.09036,2020.5,2020.4,3.50738]
[1742451676043,1.2985,2020.5,2020.4,3.50738]
[1742451676439,2.09036,2020.5,2020.4,3.50738]
[1742451677247,2.09036,2020.5,2020.4,0.79188]
[1742451677445,0.7919,2020.4,2020.3,7.16571]
[1742451677747,2.8636,2020.4,2020.3,7.16571]
[1742451677945,2.0717,2020.4,2020.3,7.16571]
[1742451680151,2.8636,2020.4,2020.3,7.16571]
[1742451680845,2.0717,2020.4,2020.3,7.16571]
[1742451682649,2.8636,2020.4,2020.3,7.16571]
[1742451684044,2.0717,2020.4,2020.3,7.16571]
[1742451684640,3.99966,2020.6,2020.3,6.3738]
[1742451684853,1.327,2020.5,2020.4,2.1552]
[1742451686352,1.327,2020.5,2020.4,2.8633]
[1742451686652,2.11886,2020.5,2020.4,0.7919]
[1742451686852,2.80046,2020.5,2020.4,0.7919]
[1742451687351,0.7919,2020.4,2020.3,5.3629]
[1742451687552,2.7511,2020.4,2020.3,5.3629]
[1742451688647,1.9592,2020.4,2020.3,5.3629]
[1742451689150,2.7511,2020.4,2020.3,5.3629]
[1742451689348,1.9592,2020.4,2020.3,6.03948045]
[1742451690152,1.9592,2020.4,2020.3,6.03943241]
[1742451690350,2.7511,2020.4,2020.3,6.03943241]
[1742451691254,1.9592,2020.4,2020.3,6.03943241]
[1742451691753,2.7511,2020.4,2020.3,6.03943241]
[1742451691951,1.9592,2020.4,2020.3,6.03943241]
[1742451692140,1.9592,2020.4,2020.3,6.0399804]
[1742451692745,1.2906,2020.4,2020.3,6.0399804]
[1742451694052,1.2906,2020.4,2020.3,5.3629]
[1742451694256,1.2906,2020.4,2020.3,6.04087226]
[1742451695348,3.8634,2020.6,2020.5,0.79186]
[1742451695663,3.8634,2020.6,2020.5,42.26983226]
[1742451695848,3.8634,2020.6,2020.5,1.46983226]
[1742451696048,3.8634,2020.6,2020.5,2.16963226]